[Event "Titled Tuesday Blitz October 11 Early 2022"]
[White "Skliarov, Viktor"]
[Black "Carbone, Diego"]
[WhiteFideId "14106736"]
[BlackFideId "3002179"]
[WhiteElo "2284"]
[BlackElo "2243"]
[Result "0-1"]
[Round "04"]
[TimeControl "180+1"]
[Date "2022.10.12"]
[WhiteClock "0:00:06"]
[BlackClock "0:01:13"]

1. e4 {[%clk 0:03:00]}  e5 {[%clk 0:02:58]} 2. Nc3 {[%clk 0:03:00]}  Nf6 {[%clk 0:02:57]} 3. Bc4 {[%clk 0:03:00]}  Nxe4 {[%clk 0:02:57]} 4. Qh5 {[%clk 0:02:59]}  Nd6 {[%clk 0:02:58]} 5. Bb3 {[%clk 0:02:59]}  Be7 {[%clk 0:02:29]} 6. Qxe5 {[%clk 0:02:58]}  O-O {[%clk 0:02:29]} 7. d4 {[%clk 0:02:58]}  Nc6 {[%clk 0:02:26]} 8. Qf4 {[%clk 0:02:56]}  Re8 {[%clk 0:02:27]} 9. Nge2 {[%clk 0:02:51]}  a5 {[%clk 0:02:24]} 10. a4 {[%clk 0:02:50]}  b6 {[%clk 0:02:22]} 11. Be3 {[%clk 0:02:40]}  Ba6 {[%clk 0:02:20]} 12. O-O-O {[%clk 0:02:39]}  Nb4 {[%clk 0:02:17]} 13. Ng3 {[%clk 0:02:33]}  Bc4 {[%clk 0:02:15]} 14. Bxc4 {[%clk 0:02:19]}  Nxc4 {[%clk 0:02:16]} 15. h4 {[%clk 0:02:18]}  Bd6 {[%clk 0:02:09]} 16. Qf3 {[%clk 0:02:13]}  Bxg3 {[%clk 0:02:02]} 17. Qxg3 {[%clk 0:02:11]}  c6 {[%clk 0:01:58]} 18. Bg5 {[%clk 0:01:56]}  f6 {[%clk 0:01:52]} 19. Bf4 {[%clk 0:01:51]}  Qe7 {[%clk 0:01:48]} 20. h5 {[%clk 0:01:47]}  d5 {[%clk 0:01:43]} 21. Qf3 {[%clk 0:00:40]}  b5 {[%clk 0:01:28]} 22. axb5 {[%clk 0:00:34]}  a4 {[%clk 0:01:29]} 23. Kb1 {[%clk 0:00:08]}  a3 {[%clk 0:01:14]} 24. Bc1 {[%clk 0:00:06]}  a2+ {[%clk 0:01:13]} 0-1


[Site "https://www.chess.com"]

[Event "Titled Tuesday Blitz October 11 Early 2022"]
[White "Slaby, Jerzy"]
[Black "Azarov, Sergei"]
[WhiteFideId "1121405"]
[BlackFideId "13501470"]
[WhiteElo "2545"]
[BlackElo "2494"]
[Result "0-1"]
[Round "04"]
[TimeControl "180+1"]
[Date "2022.10.12"]
[WhiteClock "0:00:01"]
[BlackClock "0:00:18"]

1. e4 {[%clk 0:03:00]}  e5 {[%clk 0:02:59]} 2. Nf3 {[%clk 0:03:00]}  Nc6 {[%clk 0:03:00]} 3. Bb5 {[%clk 0:02:58]}  a6 {[%clk 0:02:59]} 4. Bxc6 {[%clk 0:02:58]}  dxc6 {[%clk 0:02:59]} 5. O-O {[%clk 0:02:58]}  Ne7 {[%clk 0:02:53]} 6. Nc3 {[%clk 0:02:37]}  Ng6 {[%clk 0:02:50]} 7. d4 {[%clk 0:02:36]}  exd4 {[%clk 0:02:41]} 8. Qxd4 {[%clk 0:02:37]}  Qxd4 {[%clk 0:02:39]} 9. Nxd4 {[%clk 0:02:38]}  Bd7 {[%clk 0:02:36]} 10. Be3 {[%clk 0:02:35]}  O-O-O {[%clk 0:02:28]} 11. f3 {[%clk 0:02:34]}  Bb4 {[%clk 0:02:25]} 12. Rad1 {[%clk 0:02:32]}  Rhe8 {[%clk 0:02:22]} 13. Bf2 {[%clk 0:02:32]}  Bxc3 {[%clk 0:02:18]} 14. bxc3 {[%clk 0:02:31]}  Ne5 {[%clk 0:02:19]} 15. Rfe1 {[%clk 0:02:18]}  b6 {[%clk 0:02:14]} 16. h3 {[%clk 0:01:58]}  a5 {[%clk 0:02:08]} 17. f4 {[%clk 0:01:40]}  Nc4 {[%clk 0:02:07]} 18. e5 {[%clk 0:01:37]}  c5 {[%clk 0:02:07]} 19. Nf3 {[%clk 0:01:35]}  Bf5 {[%clk 0:02:05]} 20. Rc1 {[%clk 0:01:21]}  h5 {[%clk 0:02:00]} 21. Bh4 {[%clk 0:01:11]}  Rd7 {[%clk 0:01:55]} 22. Kf2 {[%clk 0:01:11]}  Kb7 {[%clk 0:01:45]} 23. Red1 {[%clk 0:00:58]}  Rxd1 {[%clk 0:01:39]} 24. Rxd1 {[%clk 0:00:59]}  Kc6 {[%clk 0:01:39]} 25. Rc1 {[%clk 0:00:52]}  Kb5 {[%clk 0:01:38]} 26. Ng5 {[%clk 0:00:50]}  Re7 {[%clk 0:01:31]} 27. Kf3 {[%clk 0:00:41]}  Nd2+ {[%clk 0:01:25]} 28. Ke3 {[%clk 0:00:41]}  Rd7 {[%clk 0:01:23]} 29. Be1 {[%clk 0:00:31]}  Nc4+ {[%clk 0:01:22]} 30. Kf3 {[%clk 0:00:31]}  f6 {[%clk 0:00:39]} 31. exf6 {[%clk 0:00:30]}  gxf6 {[%clk 0:00:40]} 32. Ne4 {[%clk 0:00:31]}  Bxe4+ {[%clk 0:00:36]} 33. Kxe4 {[%clk 0:00:32]}  Nd6+ {[%clk 0:00:36]} 34. Kf3 {[%clk 0:00:27]}  f5 {[%clk 0:00:35]} 35. g4 {[%clk 0:00:26]}  hxg4+ {[%clk 0:00:35]} 36. hxg4 {[%clk 0:00:26]}  fxg4+ {[%clk 0:00:35]} 37. Kxg4 {[%clk 0:00:27]}  Rf7 {[%clk 0:00:36]} 38. Bd2 {[%clk 0:00:16]}  Kc4 {[%clk 0:00:32]} 39. Rf1 {[%clk 0:00:15]}  Ne4 {[%clk 0:00:31]} 40. Be1 {[%clk 0:00:15]}  Nxc3 {[%clk 0:00:30]} 41. Bxc3 {[%clk 0:00:15]}  Kxc3 {[%clk 0:00:31]} 42. Rf2 {[%clk 0:00:15]}  b5 {[%clk 0:00:30]} 43. f5 {[%clk 0:00:15]}  a4 {[%clk 0:00:29]} 44. f6 {[%clk 0:00:14]}  b4 {[%clk 0:00:29]} 45. Kf5 {[%clk 0:00:14]}  c4 {[%clk 0:00:25]} 46. Ke6 {[%clk 0:00:14]}  Rf8 {[%clk 0:00:25]} 47. Ke7 {[%clk 0:00:15]}  Ra8 {[%clk 0:00:24]} 48. f7 {[%clk 0:00:14]}  b3 {[%clk 0:00:23]} 49. cxb3 {[%clk 0:00:14]}  axb3 {[%clk 0:00:24]} 50. axb3 {[%clk 0:00:15]}  cxb3 {[%clk 0:00:24]} 51. Rf3+ {[%clk 0:00:09]}  Kb4 {[%clk 0:00:21]} 52. Rf4+ {[%clk 0:00:05]}  Ka3 {[%clk 0:00:20]} 53. Rf3 {[%clk 0:00:04]}  c5 {[%clk 0:00:18]} 54. Kd6 {[%clk 0:00:01]}  Kb4 {[%clk 0:00:18]} 0-1


[Site "https://www.chess.com"]

[Event "Titled Tuesday Blitz October 11 Early 2022"]
[White "Sowul, Bartosz"]
[Black "Rozen, Eytan"]
[WhiteFideId "1137590"]
[BlackFideId "2816750"]
[WhiteElo "2188"]
[BlackElo "2362"]
[Result "0-1"]
[Round "04"]
[TimeControl "180+1"]
[Date "2022.10.12"]
[WhiteClock "0:00:03"]
[BlackClock "0:00:02"]

1. e4 {[%clk 0:03:00]}  c6 {[%clk 0:02:59]} 2. d4 {[%clk 0:02:57]}  d5 {[%clk 0:02:59]} 3. exd5 {[%clk 0:02:57]}  cxd5 {[%clk 0:02:59]} 4. Nf3 {[%clk 0:02:58]}  Nc6 {[%clk 0:02:58]} 5. Bb5 {[%clk 0:02:58]}  Nf6 {[%clk 0:02:52]} 6. Ne5 {[%clk 0:02:57]}  Qa5+ {[%clk 0:02:47]} 7. Nc3 {[%clk 0:02:56]}  Qc7 {[%clk 0:02:48]} 8. Bf4 {[%clk 0:02:45]}  Qb6 {[%clk 0:02:39]} 9. a4 {[%clk 0:02:38]}  a5 {[%clk 0:02:30]} 10. O-O {[%clk 0:02:27]}  e6 {[%clk 0:02:29]} 11. Qf3 {[%clk 0:02:07]}  Be7 {[%clk 0:02:28]} 12. Qg3 {[%clk 0:01:56]}  Nh5 {[%clk 0:02:24]} 13. Qg4 {[%clk 0:01:53]}  Nxf4 {[%clk 0:02:23]} 14. Qxf4 {[%clk 0:01:54]}  O-O {[%clk 0:02:22]} 15. Ne2 {[%clk 0:01:50]}  f6 {[%clk 0:02:13]} 16. Nxc6 {[%clk 0:01:42]}  bxc6 {[%clk 0:02:12]} 17. Bd3 {[%clk 0:01:43]}  e5 {[%clk 0:02:03]} 18. dxe5 {[%clk 0:01:39]}  g5 {[%clk 0:02:02]} 19. Qg3 {[%clk 0:01:34]}  f5 {[%clk 0:02:02]} 20. Qe3 {[%clk 0:01:06]}  c5 {[%clk 0:01:43]} 21. c4 {[%clk 0:00:56]}  d4 {[%clk 0:01:37]} 22. Qd2 {[%clk 0:00:54]}  f4 {[%clk 0:01:27]} 23. Qc2 {[%clk 0:00:46]}  h6 {[%clk 0:01:08]} 24. f3 {[%clk 0:00:41]}  Rb8 {[%clk 0:01:04]} 25. Rab1 {[%clk 0:00:30]}  Kg7 {[%clk 0:00:59]} 26. b3 {[%clk 0:00:29]}  Be6 {[%clk 0:00:46]} 27. Nc1 {[%clk 0:00:24]}  Qc7 {[%clk 0:00:43]} 28. Qe2 {[%clk 0:00:21]}  Rb6 {[%clk 0:00:26]} 29. Bc2 {[%clk 0:00:20]}  Bg8 {[%clk 0:00:21]} 30. Nd3 {[%clk 0:00:19]}  Bh7 {[%clk 0:00:18]} 31. Rbe1 {[%clk 0:00:18]}  Re6 {[%clk 0:00:17]} 32. Nf2 {[%clk 0:00:15]}  Bxc2 {[%clk 0:00:12]} 33. Qxc2 {[%clk 0:00:16]}  Rxe5 {[%clk 0:00:12]} 34. Ng4 {[%clk 0:00:14]}  Re3 {[%clk 0:00:10]} 35. Rxe3 {[%clk 0:00:11]}  fxe3 {[%clk 0:00:05]} 36. Qe4 {[%clk 0:00:06]}  Bf6 {[%clk 0:00:03]} 37. f4 {[%clk 0:00:03]}  Qe7 {[%clk 0:00:02]} 0-1


[Site "https://www.chess.com"]

[Event "Titled Tuesday Blitz October 11 Early 2022"]
[White "Tarasova, Viktoriya"]
[Black "Poltorak, Sebastian"]
[WhiteFideId "4175840"]
[BlackFideId "1199498"]
[WhiteElo "2182"]
[BlackElo "2232"]
[Result "0-1"]
[Round "04"]
[TimeControl "180+1"]
[Date "2022.10.12"]
[WhiteClock "0:00:08"]
[BlackClock "0:00:59"]

1. d4 {[%clk 0:03:00]}  Nf6 {[%clk 0:02:57]} 2. c4 {[%clk 0:03:01]}  g6 {[%clk 0:02:57]} 3. Nc3 {[%clk 0:03:00]}  d5 {[%clk 0:02:56]} 4. cxd5 {[%clk 0:03:00]}  Nxd5 {[%clk 0:02:55]} 5. g3 {[%clk 0:02:59]}  Bg7 {[%clk 0:02:55]} 6. Bg2 {[%clk 0:02:59]}  Nxc3 {[%clk 0:02:55]} 7. bxc3 {[%clk 0:02:59]}  O-O {[%clk 0:02:56]} 8. e3 {[%clk 0:02:59]}  c6 {[%clk 0:02:48]} 9. Ne2 {[%clk 0:03:00]}  Nd7 {[%clk 0:02:48]} 10. O-O {[%clk 0:03:00]}  e5 {[%clk 0:02:49]} 11. a4 {[%clk 0:02:53]}  Re8 {[%clk 0:02:45]} 12. Ba3 {[%clk 0:02:48]}  Nb6 {[%clk 0:02:28]} 13. a5 {[%clk 0:02:11]}  Nc4 {[%clk 0:02:27]} 14. Bb4 {[%clk 0:02:11]}  Be6 {[%clk 0:02:21]} 15. e4 {[%clk 0:02:04]}  f6 {[%clk 0:02:10]} 16. d5 {[%clk 0:01:57]}  Bf7 {[%clk 0:02:05]} 17. Qd3 {[%clk 0:01:52]}  cxd5 {[%clk 0:02:02]} 18. exd5 {[%clk 0:01:50]}  Nd6 {[%clk 0:02:02]} 19. c4 {[%clk 0:01:46]}  e4 {[%clk 0:02:01]} 20. Qb3 {[%clk 0:01:43]}  f5 {[%clk 0:02:01]} 21. Rac1 {[%clk 0:01:42]}  Rc8 {[%clk 0:02:00]} 22. Rfd1 {[%clk 0:01:36]}  b6 {[%clk 0:01:56]} 23. a6 {[%clk 0:01:33]}  Qc7 {[%clk 0:01:52]} 24. c5 {[%clk 0:00:42]}  bxc5 {[%clk 0:01:49]} 25. Bxc5 {[%clk 0:00:43]}  Qd7 {[%clk 0:01:38]} 26. Nf4 {[%clk 0:00:31]}  Rb8 {[%clk 0:01:34]} 27. Qa2 {[%clk 0:00:27]}  Rec8 {[%clk 0:01:32]} 28. Ne6 {[%clk 0:00:25]}  Be5 {[%clk 0:01:14]} 29. Bf1 {[%clk 0:00:23]}  Nb5 {[%clk 0:01:00]} 30. Bxb5 {[%clk 0:00:19]}  Rxb5 {[%clk 0:01:00]} 31. Bxa7 {[%clk 0:00:08]}  Rxc1 {[%clk 0:00:59]} 32. Rxc1 {[%clk 0:00:08]}  Rxd5 {[%clk 0:00:59]} 0-1


[Site "https://www.chess.com"]

[Event "Titled Tuesday Blitz October 11 Early 2022"]
[White "Tiarks, Jann-Christian"]
[Black "Shuvalov, Evgenij"]
[WhiteFideId "12951595"]
[BlackFideId "4187237"]
[WhiteElo "2194"]
[BlackElo "2049"]
[Result "0-1"]
[Round "04"]
[TimeControl "180+1"]
[Date "2022.10.12"]
[WhiteClock "0:00:17"]
[BlackClock "0:01:04"]

1. e4 {[%clk 0:03:00]}  e6 {[%clk 0:02:55]} 2. d4 {[%clk 0:03:00]}  d5 {[%clk 0:02:55]} 3. Nc3 {[%clk 0:02:59]}  Bb4 {[%clk 0:02:55]} 4. a3 {[%clk 0:02:59]}  Bxc3+ {[%clk 0:02:54]} 5. bxc3 {[%clk 0:03:00]}  dxe4 {[%clk 0:02:55]} 6. Qg4 {[%clk 0:03:00]}  Nf6 {[%clk 0:02:56]} 7. Qxg7 {[%clk 0:03:00]}  Rg8 {[%clk 0:02:56]} 8. Qh6 {[%clk 0:03:00]}  c5 {[%clk 0:02:57]} 9. Qe3 {[%clk 0:02:54]}  cxd4 {[%clk 0:02:56]} 10. cxd4 {[%clk 0:02:54]}  Nc6 {[%clk 0:02:54]} 11. c3 {[%clk 0:02:49]}  Ne7 {[%clk 0:02:52]} 12. g3 {[%clk 0:02:34]}  Bd7 {[%clk 0:02:42]} 13. Bg2 {[%clk 0:02:32]}  Bc6 {[%clk 0:02:42]} 14. c4 {[%clk 0:02:08]}  Nf5 {[%clk 0:02:39]} 15. Qc3 {[%clk 0:02:05]}  Qxd4 {[%clk 0:02:32]} 16. Bb2 {[%clk 0:02:01]}  O-O-O {[%clk 0:02:26]} 17. Ne2 {[%clk 0:01:57]}  Qxc3+ {[%clk 0:02:21]} 18. Bxc3 {[%clk 0:01:58]}  Nd7 {[%clk 0:02:16]} 19. O-O {[%clk 0:01:55]}  Nc5 {[%clk 0:02:15]} 20. Rfd1 {[%clk 0:01:52]}  Rxd1+ {[%clk 0:02:10]} 21. Rxd1 {[%clk 0:01:52]}  Rd8 {[%clk 0:02:11]} 22. Rxd8+ {[%clk 0:01:47]}  Kxd8 {[%clk 0:02:11]} 23. g4 {[%clk 0:01:47]}  Nd6 {[%clk 0:02:03]} 24. Nd4 {[%clk 0:01:38]}  Nxc4 {[%clk 0:01:58]} 25. Nxc6+ {[%clk 0:01:38]}  bxc6 {[%clk 0:01:59]} 26. Bd4 {[%clk 0:01:32]}  Nb3 {[%clk 0:01:43]} 27. Bxa7 {[%clk 0:01:19]}  f5 {[%clk 0:01:41]} 28. g5 {[%clk 0:01:15]}  Ke7 {[%clk 0:01:32]} 29. a4 {[%clk 0:01:01]}  Nb2 {[%clk 0:01:26]} 30. Bf1 {[%clk 0:00:43]}  Nxa4 {[%clk 0:01:25]} 31. h4 {[%clk 0:00:38]}  Nd2 {[%clk 0:01:21]} 32. Be2 {[%clk 0:00:35]}  Nf3+ {[%clk 0:01:15]} 33. Bxf3 {[%clk 0:00:35]}  exf3 {[%clk 0:01:16]} 34. Kh2 {[%clk 0:00:32]}  e5 {[%clk 0:01:15]} 35. Kg3 {[%clk 0:00:28]}  e4 {[%clk 0:01:16]} 36. Kf4 {[%clk 0:00:28]}  Ke6 {[%clk 0:01:15]} 37. h5 {[%clk 0:00:28]}  Nc3 {[%clk 0:01:15]} 38. g6 {[%clk 0:00:23]}  hxg6 {[%clk 0:01:11]} 39. hxg6 {[%clk 0:00:24]}  Nd5+ {[%clk 0:01:09]} 40. Kg5 {[%clk 0:00:24]}  e3 {[%clk 0:01:08]} 41. fxe3 {[%clk 0:00:15]}  f2 {[%clk 0:01:07]} 42. e4 {[%clk 0:00:16]}  f1=Q {[%clk 0:01:06]} 43. exf5+ {[%clk 0:00:16]}  Qxf5+ {[%clk 0:01:05]} 44. Kh6 {[%clk 0:00:17]}  Ne7 {[%clk 0:01:04]} 0-1


[Site "https://www.chess.com"]

[Event "Titled Tuesday Blitz October 11 Early 2022"]
[White "Timofeev, Artyom"]
[Black "Krishnan, Varun"]
[WhiteFideId "4140419"]
[BlackFideId "5054508"]
[WhiteElo "2579"]
[BlackElo "2625"]
[Result "1/2-1/2"]
[Round "04"]
[TimeControl "180+1"]
[Date "2022.10.11"]
[WhiteClock "0:00:05"]
[BlackClock "0:00:03"]

1. e4 {[%clk 0:03:00]}  c5 {[%clk 0:02:57]} 2. Nf3 {[%clk 0:03:00]}  d6 {[%clk 0:02:57]} 3. d4 {[%clk 0:03:00]}  cxd4 {[%clk 0:02:57]} 4. Nxd4 {[%clk 0:03:00]}  Nf6 {[%clk 0:02:52]} 5. Nc3 {[%clk 0:03:01]}  g6 {[%clk 0:02:50]} 6. Bg5 {[%clk 0:02:56]}  Bg7 {[%clk 0:02:48]} 7. Nb3 {[%clk 0:02:53]}  a6 {[%clk 0:02:43]} 8. Be2 {[%clk 0:02:53]}  O-O {[%clk 0:02:43]} 9. O-O {[%clk 0:02:52]}  b5 {[%clk 0:02:42]} 10. Bf3 {[%clk 0:02:51]}  Ra7 {[%clk 0:02:40]} 11. Re1 {[%clk 0:02:36]}  Rd7 {[%clk 0:02:27]} 12. Qd2 {[%clk 0:02:31]}  Bb7 {[%clk 0:02:25]} 13. Bh6 {[%clk 0:02:29]}  d5 {[%clk 0:02:20]} 14. e5 {[%clk 0:02:19]}  Ne4 {[%clk 0:02:08]} 15. Bxe4 {[%clk 0:02:16]}  dxe4 {[%clk 0:02:06]} 16. Qf4 {[%clk 0:02:16]}  Bxh6 {[%clk 0:01:55]} 17. Qxh6 {[%clk 0:02:16]}  Qc7 {[%clk 0:01:55]} 18. Nxe4 {[%clk 0:01:49]}  Qxe5 {[%clk 0:01:55]} 19. Nec5 {[%clk 0:01:39]}  Qd5 {[%clk 0:01:52]} 20. Nxb7 {[%clk 0:01:39]}  Rxb7 {[%clk 0:01:42]} 21. Rad1 {[%clk 0:01:38]}  Qf5 {[%clk 0:01:38]} 22. Nd4 {[%clk 0:01:19]}  Qf6 {[%clk 0:01:37]} 23. Nf3 {[%clk 0:01:15]}  Nc6 {[%clk 0:01:34]} 24. c3 {[%clk 0:01:12]}  b4 {[%clk 0:01:32]} 25. cxb4 {[%clk 0:01:01]}  Nxb4 {[%clk 0:01:29]} 26. a3 {[%clk 0:00:52]}  Nc2 {[%clk 0:01:29]} 27. Re2 {[%clk 0:00:44]}  Rxb2 {[%clk 0:01:18]} 28. h4 {[%clk 0:00:44]}  Rfb8 {[%clk 0:00:56]} 29. Red2 {[%clk 0:00:42]}  e6 {[%clk 0:00:23]} 30. Ng5 {[%clk 0:00:42]}  Rb1 {[%clk 0:00:16]} 31. Qxh7+ {[%clk 0:00:38]}  Kf8 {[%clk 0:00:16]} 32. Qh6+ {[%clk 0:00:29]}  Kg8 {[%clk 0:00:15]} 33. h5 {[%clk 0:00:19]}  Rxd1+ {[%clk 0:00:05]} 34. Rxd1 {[%clk 0:00:19]}  Qg7 {[%clk 0:00:04]} 35. Qxg7+ {[%clk 0:00:17]}  Kxg7 {[%clk 0:00:05]} 36. h6+ {[%clk 0:00:18]}  Kxh6 {[%clk 0:00:05]} 37. Nxf7+ {[%clk 0:00:18]}  Kg7 {[%clk 0:00:05]} 38. Rd7 {[%clk 0:00:17]}  Nxa3 {[%clk 0:00:04]} 39. Nd8+ {[%clk 0:00:13]}  Kg8 {[%clk 0:00:04]} 40. Nxe6 {[%clk 0:00:12]}  Rb1+ {[%clk 0:00:04]} 41. Kh2 {[%clk 0:00:12]}  Rb6 {[%clk 0:00:04]} 42. Rg7+ {[%clk 0:00:11]}  Kh8 {[%clk 0:00:04]} 43. Rxg6 {[%clk 0:00:12]}  Nc4 {[%clk 0:00:04]} 44. f4 {[%clk 0:00:10]}  a5 {[%clk 0:00:04]} 45. f5 {[%clk 0:00:11]}  a4 {[%clk 0:00:02]} 46. Rh6+ {[%clk 0:00:09]}  Kg8 {[%clk 0:00:02]} 47. Kg3 {[%clk 0:00:09]}  a3 {[%clk 0:00:02]} 48. Rh1 {[%clk 0:00:09]}  a2 {[%clk 0:00:02]} 49. Ra1 {[%clk 0:00:09]}  Ne3 {[%clk 0:00:01]} 50. Kf4 {[%clk 0:00:07]}  Nd5+ {[%clk 0:00:01]} 51. Ke5 {[%clk 0:00:07]}  Nc3 {[%clk 0:00:01]} 52. Nd4 {[%clk 0:00:04]}  Rb1 {[%clk 0:00:02]} 53. Nc2 {[%clk 0:00:04]}  Kf7 {[%clk 0:00:01]} 54. g4 {[%clk 0:00:04]}  Rxa1 {[%clk 0:00:01]} 55. Nxa1 {[%clk 0:00:04]}  Ne2 {[%clk 0:00:02]} 56. g5 {[%clk 0:00:04]}  Nc1 {[%clk 0:00:02]} 57. Nc2 {[%clk 0:00:03]}  Nd3+ {[%clk 0:00:01]} 58. Kd6 {[%clk 0:00:04]}  Nb4 {[%clk 0:00:01]} 59. Na1 {[%clk 0:00:04]}  Nd3 {[%clk 0:00:02]} 60. Kd5 {[%clk 0:00:03]}  Nf4+ {[%clk 0:00:02]} 61. Ke4 {[%clk 0:00:03]}  Ne2 {[%clk 0:00:02]} 62. Ke3 {[%clk 0:00:04]}  Nc3 {[%clk 0:00:02]} 63. Kd3 {[%clk 0:00:04]}  Nd5 {[%clk 0:00:02]} 64. Kc2 {[%clk 0:00:03]}  Ne3+ {[%clk 0:00:02]} 65. Kb2 {[%clk 0:00:04]}  Nxf5 {[%clk 0:00:02]} 66. Kxa2 {[%clk 0:00:04]}  Kg6 {[%clk 0:00:03]} 67. Nb3 {[%clk 0:00:05]}  Kxg5 {[%clk 0:00:03]} 1/2-1/2


[Site "https://www.chess.com"]

[Event "Titled Tuesday Blitz October 11 Early 2022"]
[White "Toncheva, Nadya"]
[Black "Piesik, Piotr"]
[WhiteFideId "2924056"]
[BlackFideId "1136194"]
[WhiteElo "2101"]
[BlackElo "2323"]
[Result "0-1"]
[Round "04"]
[TimeControl "180+1"]
[Date "2022.10.12"]
[WhiteClock "0:00:04"]
[BlackClock "0:00:38"]

1. e4 {[%clk 0:03:00]}  g6 {[%clk 0:02:57]} 2. d4 {[%clk 0:03:00]}  Bg7 {[%clk 0:02:58]} 3. Nf3 {[%clk 0:03:00]}  c6 {[%clk 0:02:57]} 4. Nc3 {[%clk 0:02:56]}  d6 {[%clk 0:02:58]} 5. Bd3 {[%clk 0:02:54]}  Nf6 {[%clk 0:02:58]} 6. O-O {[%clk 0:02:54]}  O-O {[%clk 0:02:58]} 7. Qe2 {[%clk 0:02:54]}  Bg4 {[%clk 0:02:57]} 8. h3 {[%clk 0:02:53]}  Bxf3 {[%clk 0:02:57]} 9. Qxf3 {[%clk 0:02:54]}  Nbd7 {[%clk 0:02:57]} 10. Ne2 {[%clk 0:02:53]}  e5 {[%clk 0:02:51]} 11. c3 {[%clk 0:02:50]}  Qc7 {[%clk 0:02:49]} 12. a4 {[%clk 0:02:49]}  Rae8 {[%clk 0:02:48]} 13. Bg5 {[%clk 0:02:47]}  d5 {[%clk 0:02:46]} 14. Bxf6 {[%clk 0:02:08]}  Nxf6 {[%clk 0:02:41]} 15. dxe5 {[%clk 0:02:07]}  dxe4 {[%clk 0:02:28]} 16. Bxe4 {[%clk 0:01:47]}  Nxe4 {[%clk 0:02:27]} 17. Qxe4 {[%clk 0:01:48]}  Bxe5 {[%clk 0:02:27]} 18. Qf3 {[%clk 0:01:42]}  Re6 {[%clk 0:02:21]} 19. Rad1 {[%clk 0:01:41]}  Rd8 {[%clk 0:02:17]} 20. Ng3 {[%clk 0:01:31]}  Bxg3 {[%clk 0:01:52]} 21. fxg3 {[%clk 0:01:22]}  Rxd1 {[%clk 0:01:50]} 22. Rxd1 {[%clk 0:01:13]}  h5 {[%clk 0:01:49]} 23. Kh1 {[%clk 0:00:57]}  Qa5 {[%clk 0:01:43]} 24. Rd7 {[%clk 0:00:52]}  f5 {[%clk 0:01:28]} 25. Qf4 {[%clk 0:00:34]}  Qe5 {[%clk 0:01:11]} 26. Qh6 {[%clk 0:00:31]}  Re7 {[%clk 0:01:04]} 27. Qxg6+ {[%clk 0:00:26]}  Kf8 {[%clk 0:01:03]} 28. Rd8+ {[%clk 0:00:17]}  Re8 {[%clk 0:01:03]} 29. Rxe8+ {[%clk 0:00:14]}  Qxe8 {[%clk 0:01:04]} 30. Qxe8+ {[%clk 0:00:10]}  Kxe8 {[%clk 0:01:05]} 31. Kg1 {[%clk 0:00:11]}  Ke7 {[%clk 0:01:04]} 32. Kf2 {[%clk 0:00:12]}  Ke6 {[%clk 0:01:04]} 33. Kf3 {[%clk 0:00:11]}  Ke5 {[%clk 0:01:04]} 34. g4 {[%clk 0:00:12]}  fxg4+ {[%clk 0:01:02]} 35. hxg4 {[%clk 0:00:13]}  h4 {[%clk 0:01:03]} 36. g3 {[%clk 0:00:06]}  h3 {[%clk 0:01:02]} 37. Kf2 {[%clk 0:00:07]}  Kf6 {[%clk 0:00:58]} 38. Kg1 {[%clk 0:00:02]}  Kg5 {[%clk 0:00:58]} 39. Kh2 {[%clk 0:00:03]}  Kxg4 {[%clk 0:00:59]} 40. b3 {[%clk 0:00:03]}  a5 {[%clk 0:00:37]} 41. b4 {[%clk 0:00:03]}  b6 {[%clk 0:00:36]} 42. b5 {[%clk 0:00:01]}  cxb5 {[%clk 0:00:36]} 43. axb5 {[%clk 0:00:02]}  a4 {[%clk 0:00:36]} 44. c4 {[%clk 0:00:03]}  a3 {[%clk 0:00:37]} 45. c5 {[%clk 0:00:04]}  a2 {[%clk 0:00:37]} 46. cxb6 {[%clk 0:00:04]}  a1=Q {[%clk 0:00:37]} 47. b7 {[%clk 0:00:05]}  Qb2+ {[%clk 0:00:37]} 48. Kg1 {[%clk 0:00:04]}  Qg2# {[%clk 0:00:38]} 0-1


[Site "https://www.chess.com"]

[Event "Titled Tuesday Blitz October 11 Early 2022"]
[White "Troltenier, Dirk"]
[Black "Parpiev, Isaak"]
[WhiteFideId "4606400"]
[BlackFideId "34281576"]
[WhiteElo "2266"]
[BlackElo "2100"]
[Result "1-0"]
[Round "04"]
[TimeControl "180+1"]
[Date "2022.10.12"]
[WhiteClock "0:00:38"]
[BlackClock "0:00:01"]

1. e4 {[%clk 0:02:58]}  c5 {[%clk 0:02:59]} 2. c3 {[%clk 0:02:58]}  Nf6 {[%clk 0:02:58]} 3. e5 {[%clk 0:02:58]}  Nd5 {[%clk 0:02:59]} 4. d4 {[%clk 0:02:59]}  cxd4 {[%clk 0:02:59]} 5. Nf3 {[%clk 0:03:00]}  Nc6 {[%clk 0:02:58]} 6. Bc4 {[%clk 0:03:00]}  Nb6 {[%clk 0:02:58]} 7. Bb3 {[%clk 0:03:00]}  e6 {[%clk 0:02:56]} 8. O-O {[%clk 0:03:00]}  d5 {[%clk 0:02:51]} 9. exd6 {[%clk 0:02:57]}  Bxd6 {[%clk 0:02:51]} 10. cxd4 {[%clk 0:02:57]}  O-O {[%clk 0:02:49]} 11. Nc3 {[%clk 0:02:57]}  Nb4 {[%clk 0:02:44]} 12. Qe2 {[%clk 0:02:53]}  N4d5 {[%clk 0:02:40]} 13. Re1 {[%clk 0:02:39]}  Bd7 {[%clk 0:02:32]} 14. Ne5 {[%clk 0:02:37]}  Rc8 {[%clk 0:02:29]} 15. Bd2 {[%clk 0:02:36]}  a6 {[%clk 0:02:22]} 16. Rac1 {[%clk 0:02:27]}  Be8 {[%clk 0:01:43]} 17. a3 {[%clk 0:02:14]}  Nxc3 {[%clk 0:01:41]} 18. Bxc3 {[%clk 0:02:12]}  Bb5 {[%clk 0:01:38]} 19. Qe4 {[%clk 0:02:09]}  Nd5 {[%clk 0:01:05]} 20. Bxd5 {[%clk 0:01:59]}  exd5 {[%clk 0:01:06]} 21. Qxd5 {[%clk 0:01:57]}  Bc6 {[%clk 0:01:03]} 22. Qb3 {[%clk 0:01:48]}  Qh4 {[%clk 0:00:20]} 23. g3 {[%clk 0:01:47]}  Qh6 {[%clk 0:00:07]} 24. Nxc6 {[%clk 0:01:46]}  bxc6 {[%clk 0:00:08]} 25. Qb7 {[%clk 0:01:40]}  c5 {[%clk 0:00:08]} 26. d5 {[%clk 0:01:29]}  c4 {[%clk 0:00:08]} 27. Rcd1 {[%clk 0:01:25]}  Bc5 {[%clk 0:00:04]} 28. d6 {[%clk 0:01:13]}  Bxd6 {[%clk 0:00:02]} 29. Qxa6 {[%clk 0:01:11]}  Rcd8 {[%clk 0:00:02]} 30. Qxc4 {[%clk 0:01:05]}  Bb8 {[%clk 0:00:01]} 31. Qe4 {[%clk 0:00:57]}  Rc8 {[%clk 0:00:01]} 32. a4 {[%clk 0:00:52]}  f5 {[%clk 0:00:01]} 33. Qe6+ {[%clk 0:00:51]}  Qxe6 {[%clk 0:00:02]} 34. Rxe6 {[%clk 0:00:51]}  Kf7 {[%clk 0:00:01]} 35. Rde1 {[%clk 0:00:47]}  Rc7 {[%clk 0:00:01]} 36. a5 {[%clk 0:00:47]}  Ra7 {[%clk 0:00:01]} 37. Rb6 {[%clk 0:00:38]} 1-0


[Site "https://www.chess.com"]